[Event "3rd BSSZ-Aranytiz GM 2019"]
[Site "Budapest"]
[Date "2019.08.22"]
[Round "6.5"]
[White "Horvath, Adam"]
[Black "Horvath, Dominik"]
[Result "1/2-1/2"]
[ECO "B40"]
[WhiteElo "2517"]
[BlackElo "2425"]
[Annotator "ChessBase"]
[PlyCount "46"]
[EventDate "2019.08.16"]
[EventType "tourn"]
[EventCountry "HUN"]
[SourceTitle "playchess.com"]
[Source "ChessBase"]
[SourceQuality "1"]
[TimeControl "40/5400+30:1800+30"]

1. e4 {[%emt 0:02:10]} c5 {[%emt 0:00:19]} 2. Nf3 {[%emt 0:00:15]} e6 {[%emt 0:00:05]} 3. d4 {[%emt 0:00:05]} cxd4 {[%emt 0:00:06]} 4. Nxd4 {[%emt 0:00:04]} Bc5 {[%emt 0:00:12]} 5. Nb3 {[%emt 0:08:29]} Bb6 {[%emt 0:00:24]} 6. N1d2 {[%emt 0:02:55]} d5 {[%emt 0:05:17]} 7. Bd3 {[%emt 0:02:05]} Ne7 {[%emt 0:20:09]} 8. O-O {[%emt 0:10:21]} O-O {[%emt 0:00:10]} 9. Qh5 {[%emt 0:01:46]} Nd7 {[%emt 0:13:11]} 10. exd5 {[%emt 0:19:10]} Nf6 {[%emt 0:00:10]} 11. Qh4 {[%emt 0:01:42]} exd5 {[%emt 0:04:15]} 12. Nf3 {[%emt 0:00:55]} Nf5 {[%emt 0:01:47]} 13. Bxf5 {[%emt 0:04:39]} Bxf5 {[%emt 0:00:22]} 14. Nbd4 {[%emt 0:00:06]} Qc8 {[%emt 0:06:18]} 15. Bg5 {[%emt 0:06:34]} Ne4 {[%emt 0:04:11]} 16. Be3 {[%emt 0:03:32]} Bg6 {[%emt 0:02:05]} 17. h3 {[%emt 0:21:54]} Bd8 {[%emt 0:01:26]} 18. Qf4 {[%emt 0:00:05]} Bc7 {[%emt 0:00:05]} 19. Qh4 {[%emt 0:00:05]} Re8 {[%emt 0:06:21]} 20. Rad1 {[%emt 0:02:29]} Bd8 {[%emt 0:05:37]} 21. Qf4 {[%emt 0:00:05]} Bc7 {[%emt 0:00:02]} 22. Qh4 {[%emt 0:00:06]} Bd8 {[%emt 0:02:18]} 23. Qf4 {[%emt 0:00:07]} Bc7 {[%emt 0:00:03]} 1/2-1/2

[Event "3rd BSSZ-Aranytiz GM 2019"]
[Site "Budapest"]
[Date "2019.08.23"]
[Round "7.1"]
[White "Horvath, Dominik"]
[Black "Martinovici, Ilie"]
[Result "1-0"]
[ECO "D02"]
[WhiteElo "2425"]
[BlackElo "2405"]
[Annotator "NA"]
[PlyCount "77"]
[EventDate "2019.08.16"]
[EventType "tourn"]
[EventCountry "HUN"]
[SourceTitle "playchess.com"]
[Source "ChessBase"]
[SourceQuality "1"]
[TimeControl "40/5400+30:1800+30"]

1. Nf3 {[%emt 0:00:05]} d5 {[%emt 0:00:05]} 2. d4 {[%emt 0:00:16]} Nf6 {[%emt 0:00:07]} 3. c4 {[%emt 0:00:04]} e6 {[%emt 0:00:03]} 4. g3 {[%emt 0:00:05]} Bb4+ {[%emt 0:01:14]} 5. Nbd2 {[%emt 0:00:07]} O-O {[%emt 0:00:26]} 6. Bg2 {[%emt 0:00:08]} dxc4 {[%emt 0:03:38]} 7. a3 {[%emt 0:00:42]} Ba5 {[%emt 0:00:29]} 8. O-O {[%emt 0:01:28]} c3 {[%emt 0:00:09]} 9. Nc4 {[%emt 0:03:53]} cxb2 {[%emt 0:00:18]} 10. Bxb2 {[%emt 0:00:03]} c6 {[%emt 0:02:02]} 11. Qc2 {[%emt 0:02:41]} Nbd7 {[%emt 0:02:23]} 12. Rfd1 {[%emt 0:02:02]} Bc7 {[%emt 0:01:42]} 13. Rac1 {[%emt 0:02:07]} Nb6 {[%emt 0:04:00]} 14. Nce5 {[%emt 0:00:13]} Bd7 {[%emt 0:01:14]} 15. e3 {[%emt 0:08:57]} Qe7 {[%emt 0:01:48]} 16. h4 {[%emt 0:07:53]} Rac8 {[%emt 0:03:43]} 17. Nd3 {[%emt 0:12:52]} Rfd8 {[%emt 0:03:55]} 18. Qb3 {[%emt 0:05:03]} Rb8 {[%emt 0:00:57]} 19. Nc5 {[%emt 0:08:52]} Be8 {[%emt 0:02:58]} 20. a4 {[%emt 0:03:01]} Nfd7 {[%emt 0:05:07]} 21. Ne4 {[%emt 0:01:20]} Nc8 {[%emt 0:02:39]} 22. Ba3 {[%emt 0:01:55]} Nd6 {[%emt 0:00:05]} 23. Ne5 {[%emt 0:01:29]} Nf6 {[%emt 0:00:20]} 24. Nc5 {[%emt 0:04:41]} Bb6 {[%emt 0:00:48]} 25. Ncd3 {[%emt 0:04:35]} Qc7 {[%emt 0:02:30]} 26. Nf4 {[%emt 0:01:40]} Rbc8 {[%emt 0:03:02]} 27. Bh3 {[%emt 0:04:50]} Nf5 {[%emt 0:04:09]} 28. Nxe6 {[%emt 0:01:03]} fxe6 {[%emt 0:00:23]} 29. Bxf5 {[%emt 0:01:23]} Kh8 {[%emt 0:01:05]} 30. Bxe6 {[%emt 0:00:10]} Rb8 {[%emt 0:00:12]} 31. Bf7 {[%emt 0:01:57]} Nd5 {[%emt 0:00:11]} 32. Bxe8 {[%emt 0:00:59]} Rxe8 {[%emt 0:00:06]} 33. a5 {[%emt 0:03:10]} Bxa5 {[%emt 0:00:09]} 34. e4 {[%emt 0:00:06]} Nf6 {[%emt 0:01:18]} 35. Bd6 {[%emt 0:00:37]} Qc8 {[%emt 0:00:58]} 36. Nf7+ {[%emt 0:00:04]} Kg8 {[%emt 0:00:02]} 37. Nh6+ {[%emt 0:00:05]} Kh8 {[%emt 0:00:02]} 38. Qg8+ {[%emt 0:00:05]} Nxg8 {[%emt 0:00:02]} 39. Nf7# {[%emt 0:00:05]} 1-0

[Event "3rd BSSZ-Aranytiz GM 2019"]
[Site "Budapest"]
[Date "2019.08.23"]
[Round "7.3"]
[White "Kozak, Adam"]
[Black "Csonka, Balazs"]
[Result "1-0"]
[ECO "A05"]
[WhiteElo "2495"]
[BlackElo "2472"]
[Annotator "ChessBase"]
[PlyCount "153"]
[EventDate "2019.08.16"]
[EventType "tourn"]
[EventCountry "HUN"]
[SourceTitle "playchess.com"]
[Source "ChessBase"]
[SourceQuality "1"]
[TimeControl "40/5400+30:1800+30"]

1. Nf3 {[%emt 0:00:26]} Nf6 {[%emt 0:00:20]} 2. g3 {[%emt 0:00:46]} d5 {[%emt 0:00:12]} 3. Bg2 {[%emt 0:00:23]} e6 {[%emt 0:00:11]} 4. O-O {[%emt 0:00:25]} Be7 {[%emt 0:00:05]} 5. c4 {[%emt 0:00:07]} O-O {[%emt 0:00:09]} 6. b3 {[%emt 0:00:03]} b6 {[%emt 0:00:27]} 7. Nc3 {[%emt 0:01:02]} Bb7 {[%emt 0:00:33]} 8. e3 {[%emt 0:00:11]} c5 {[%emt 0:00:39]} 9. Bb2 {[%emt 0:00:24]} Qc8 {[%emt 0:00:48]} 10. Qe2 {[%emt 0:01:02]} Rd8 {[%emt 0:01:37]} 11. Rfd1 {[%emt 0:08:27]} Nc6 {[%emt 0:13:32]} 12. d3 {[%emt 0:06:26]} d4 {[%emt 0:14:19]} 13. exd4 {[%emt 0:03:22]} Nxd4 {[%emt 0:00:11]} 14. Nxd4 {[%emt 0:00:10]} cxd4 {[%emt 0:00:04]} 15. Ne4 {[%emt 0:03:30]} Nxe4 {[%emt 0:15:33]} 16. Bxe4 {[%emt 0:00:14]} Bxe4 {[%emt 0:00:13]} 17. Qxe4 {[%emt 0:00:24]} Qd7 {[%emt 0:00:09]} 18. Re1 {[%emt 0:01:25]} a5 {[%emt 0:07:10]} 19. Rab1 {[%emt 0:04:27]} a4 {[%emt 0:03:23]} 20. Re2 {[%emt 0:08:44]} h6 {[%emt 0:13:39]} 21. Bc1 {[%emt 0:03:47]} axb3 {[%emt 0:00:25]} 22. axb3 {[%emt 0:00:25]} Bb4 {[%emt 0:05:07]} 23. Bf4 {[%emt 0:06:00]} Ra5 {[%emt 0:02:58]} 24. Qf3 {[%emt 0:05:47]} Rf5 {[%emt 0:06:36]} 25. Qg2 {[%emt 0:06:47]} Ra5 {[%emt 0:03:24]} 26. h4 {[%emt 0:03:55]} Re8 {[%emt 0:03:53]} 27. Qf3 {[%emt 0:05:18]} e5 {[%emt 0:01:39]} 28. Bd2 {[%emt 0:00:16]} Bxd2 {[%emt 0:04:29]} 29. Rxd2 {[%emt 0:00:02]} e4 {[%emt 0:00:27]} 30. dxe4 {[%emt 0:06:32]} Rae5 {[%emt 0:00:02]} 31. Re1 {[%emt 0:00:06]} f5 {[%emt 0:00:10]} 32. Qd1 {[%emt 0:00:39]} Rxe4 {[%emt 0:00:35]} 33. Rxe4 {[%emt 0:00:09]} Rxe4 {[%emt 0:00:04]} 34. f3 {[%emt 0:00:12]} Re3 {[%emt 0:01:47]} 35. Rxd4 {[%emt 0:09:08]} Re1+ {[%emt 0:00:23]} 36. Qxe1 {[%emt 0:00:02]} Qxd4+ {[%emt 0:00:07]} 37. Kg2 {[%emt 0:00:02]} Qb2+ {[%emt 0:00:17]} 38. Kh3 {[%emt 0:00:02]} Qxb3 {[%emt 0:00:07]} 39. Qe6+ {[%emt 0:00:08]} Kh8 {[%emt 0:00:10]} 40. Qc8+ {[%emt 0:00:00]} Kh7 {[%emt 0:00:00]} 41. Qxf5+ {[%emt 0:00:10]} Kh8 {[%emt 0:00:18]} 42. Qd5 {[%emt 0:03:11]} Qb2 {[%emt 0:08:19]} 43. h5 {[%emt 0:00:32]} Kh7 {[%emt 0:02:53]} 44. Kg4 {[%emt 0:01:27]} Kh8 {[%emt 0:00:43]} 45. Kf5 {[%emt 0:02:04]} Qf6+ {[%emt 0:01:55]} 46. Ke4 {[%emt 0:00:08]} Qe7+ {[%emt 0:00:46]} 47. Kd3 {[%emt 0:00:09]} Qa3+ {[%emt 0:03:37]} 48. Ke4 {[%emt 0:00:04]} Qe7+ {[%emt 0:00:14]} 49. Kd4 {[%emt 0:00:03]} Qb4 {[%emt 0:04:02]} 50. g4 {[%emt 0:00:49]} Qb2+ {[%emt 0:02:31]} 51. Ke4 {[%emt 0:01:08]} Kh7 {[%emt 0:00:52]} 52. Qc6 {[%emt 0:04:57]} Qc3 {[%emt 0:03:26]} 53. Kf5 {[%emt 0:01:17]} Qe3 {[%emt 0:02:42]} 54. Qe4 {[%emt 0:00:56]} Qc5+ {[%emt 0:00:09]} 55. Ke6+ {[%emt 0:00:05]} Kh8 {[%emt 0:00:07]} 56. Qd5 {[%emt 0:05:33]} Qc7 {[%emt 0:00:15]} 57. Kf5 {[%emt 0:03:01]} Kh7 {[%emt 0:03:07]} 58. Ke4 {[%emt 0:00:29]} Qe7+ {[%emt 0:01:36]} 59. Kd4 {[%emt 0:03:18]} Qb4 {[%emt 0:00:07]} 60. Qc6 {[%emt 0:02:36]} Qa5 {[%emt 0:03:18]} 61. Qb5 {[%emt 0:01:49]} Qd2+ {[%emt 0:01:57]} 62. Ke5 {[%emt 0:00:33]} Qd8 {[%emt 0:00:07]} 63. Qc6 {[%emt 0:01:18]} Kh8 {[%emt 0:01:01]} 64. Ke6 {[%emt 0:01:11]} Kg8 {[%emt 0:00:27]} 65. f4 {[%emt 0:09:13]} Qf6+ {[%emt 0:00:06]} 66. Kd5 {[%emt 0:00:17]} Qd8+ {[%emt 0:00:06]} 67. Qd6 {[%emt 0:01:23]} Qa8+ {[%emt 0:00:10]} 68. Ke5 {[%emt 0:00:03]} Qa1+ {[%emt 0:01:44]} 69. Ke6 {[%emt 0:01:22]} Qc3 {[%emt 0:00:40]} 70. Qd5 {[%emt 0:01:18]} Kh8 {[%emt 0:00:58]} 71. g5 {[%emt 0:05:37]} hxg5 {[%emt 0:00:43]} 72. fxg5 {[%emt 0:00:02]} Qh3+ {[%emt 0:00:11]} 73. Kf7 {[%emt 0:00:17]} Qf1+ {[%emt 0:00:50]} 74. Kg6 {[%emt 0:02:38]} Qf8 {[%emt 0:00:10]} 75. Qe5 {[%emt 0:00:43]} Kg8 {[%emt 0:00:45]} 76. Qe6+ {[%emt 0:00:17]} Kh8 {[%emt 0:00:01]} 77. h6 {[%emt 0:00:46]} 1-0

[Event "3rd BSSZ-Aranytiz GM 2019"]
[Site "Budapest"]
[Date "2019.08.23"]
[Round "7.4"]
[White "Secheres, Adrian-Simion"]
[Black "Akshat, Khamparia"]
[Result "1/2-1/2"]
[ECO "C54"]
[WhiteElo "2394"]
[BlackElo "2393"]
[Annotator "NA"]
[PlyCount "45"]
[EventDate "2019.08.16"]
[EventType "tourn"]
[EventCountry "HUN"]
[SourceTitle "playchess.com"]
[Source "ChessBase"]
[SourceQuality "1"]
[TimeControl "40/5400+30:1800+30"]

1. e4 {[%emt 0:00:16]} e5 {[%emt 0:00:11]} 2. Nf3 {[%emt 0:00:10]} Nc6 {[%emt 0:00:04]} 3. Bc4 {[%emt 0:00:13]} Bc5 {[%emt 0:00:08]} 4. c3 {[%emt 0:00:06]} Nf6 {[%emt 0:00:10]} 5. d3 {[%emt 0:00:08]} d6 {[%emt 0:00:48]} 6. O-O {[%emt 0:00:22]} Bb6 {[%emt 0:00:29]} 7. Nbd2 {[%emt 0:03:03]} Ne7 {[%emt 0:00:08]} 8. Bb3 {[%emt 0:05:02]} c6 {[%emt 0:00:06]} 9. d4 {[%emt 0:01:40]} Bc7 {[%emt 0:01:20]} 10. Re1 {[%emt 0:04:55]} O-O {[%emt 0:00:10]} 11. Nf1 {[%emt 0:05:01]} Ng6 {[%emt 0:00:29]} 12. Ng3 {[%emt 0:01:58]} h6 {[%emt 0:10:05]} 13. h3 {[%emt 0:03:00]} Re8 {[%emt 0:05:04]} 14. Bc2 {[%emt 0:07:26]} a5 {[%emt 0:23:23]} 15. Be3 {[%emt 0:03:25]} Nf4 {[%emt 0:05:36]} 16. Nf5 {[%emt 0:21:34]} g6 {[%emt 0:07:34]} 17. Bxf4 {[%emt 0:10:59]} exf4 {[%emt 0:02:24]} 18. Nxh6+ {[%emt 0:00:55]} Kg7 {[%emt 0:00:04]} 19. e5 {[%emt 0:00:55]} Kxh6 {[%emt 0:02:28]} 20. exf6 {[%emt 0:00:06]} Rxe1+ {[%emt 0:00:56]} 21. Qxe1 {[%emt 0:00:10]} Qxf6 {[%emt 0:04:18]} 22. Qe8 {[%emt 0:04:00]} Kg7 {[%emt 0:01:17]} 23. Re1 {[%emt 0:01:16]} 1/2-1/2

[Event "3rd BSSZ-Aranytiz GM 2019"]
[Site "Budapest"]
[Date "2019.08.23"]
[Round "7.5"]
[White "Polyik, Peter"]
[Black "Farago, Ivan"]
[Result "1/2-1/2"]
[ECO "E20"]
[WhiteElo "2328"]
[BlackElo "2350"]
[Annotator "NA"]
[PlyCount "35"]
[EventDate "2019.08.16"]
[EventType "tourn"]
[EventCountry "HUN"]
[SourceTitle "playchess.com"]
[Source "ChessBase"]
[SourceQuality "1"]
[TimeControl "40/5400+30:1800+30"]

1. d4 {[%emt 0:00:53]} e6 {[%emt 0:00:18]} 2. c4 {[%emt 0:00:08]} Nf6 {[%emt 0:00:24]} 3. Nc3 {[%emt 0:00:06]} Bb4 {[%emt 0:00:29]} 4. g3 {[%emt 0:00:09]} O-O {[%emt 0:03:16]} 5. Bg2 {[%emt 0:00:12]} d5 {[%emt 0:05:53]} 6. Nf3 {[%emt 0:00:21]} c5 {[%emt 0:02:15]} 7. cxd5 {[%emt 0:07:17]} Nxd5 {[%emt 0:00:28]} 8. Bd2 {[%emt 0:00:42]} cxd4 {[%emt 0:03:17]} 9. Nxd4 {[%emt 0:08:48]} Nxc3 {[%emt 0:01:18]} 10. Bxc3 {[%emt 0:01:24]} Bxc3+ {[%emt 0:01:50]} 11. bxc3 {[%emt 0:00:02]} e5 {[%emt 0:09:59]} 12. Nb3 {[%emt 0:03:27]} Qc7 {[%emt 0:01:11]} 13. O-O {[%emt 0:00:16]} Be6 {[%emt 0:00:57]} 14. Qc1 {[%emt 0:08:12]} Nd7 {[%emt 0:02:16]} 15. Qa3 {[%emt 0:03:42]} a5 {[%emt 0:03:10]} 16. Rab1 {[%emt 0:07:41]} Qxc3 {[%emt 0:05:58]} 17. Bxb7 {[%emt 0:06:35]} Ra7 {[%emt 0:00:54]} 18. Bf3 {[%emt 0:05:08]} 1/2-1/2

[Event "3rd BSSZ-Aranytiz GM 2019"]
[Site "Budapest"]
[Date "2019.08.24"]
[Round "8.1"]
[White "Martinovici, Ilie"]
[Black "Farago, Ivan"]
[Result "0-1"]
[ECO "E32"]
[WhiteElo "2405"]
[BlackElo "2350"]
[Annotator "NA"]
[PlyCount "111"]
[EventDate "2019.08.16"]
[EventType "tourn"]
[EventCountry "HUN"]
[SourceTitle "playchess.com"]
[Source "ChessBase"]
[SourceQuality "1"]
[TimeControl "40/5400+30:1800+30"]

1. d4 {[%emt 0:00:03]} Nf6 {[%emt 0:00:23]} 2. c4 {[%emt 0:00:04]} e6 {[%emt 0:00:14]} 3. Nc3 {[%emt 0:00:05]} Bb4 {[%emt 0:00:11]} 4. Qc2 {[%emt 0:00:04]} O-O {[%emt 0:00:38]} 5. e4 {[%emt 0:00:05]} d5 {[%emt 0:00:50]} 6. e5 {[%emt 0:00:05]} Ne4 {[%emt 0:00:16]} 7. Bd3 {[%emt 0:00:05]} c5 {[%emt 0:01:04]} 8. Nf3 {[%emt 0:00:06]} cxd4 {[%emt 0:01:04]} 9. Nxd4 {[%emt 0:00:06]} Nd7 {[%emt 0:00:34]} 10. Bf4 {[%emt 0:01:25]} Qh4 {[%emt 0:00:29]} 11. g3 {[%emt 0:00:15]} Qh5 {[%emt 0:00:08]} 12. h4 {[%emt 0:10:49]} f6 {[%emt 0:12:40]} 13. Nxe6 {[%emt 0:02:46]} Nxe5 {[%emt 0:01:27]} 14. Nxf8 {[%emt 0:05:55]} Qf3 {[%emt 0:02:01]} 15. Bxe4 {[%emt 0:01:20]} dxe4 {[%emt 0:01:15]} 16. Rf1 {[%emt 0:22:27]} Nd3+ {[%emt 0:11:09]} 17. Kd2 {[%emt 0:00:08]} Bg4 {[%emt 0:07:06]} 18. Qd1 {[%emt 0:02:56]} Qxd1+ {[%emt 0:04:09]} 19. Raxd1 {[%emt 0:00:07]} Bxd1 {[%emt 0:00:55]} 20. Kxd1 {[%emt 0:07:29]} Bxc3 {[%emt 0:00:55]} 21. bxc3 {[%emt 0:03:31]} Rxf8 {[%emt 0:00:25]} 22. Be3 {[%emt 0:02:46]} Rc8 {[%emt 0:05:12]} 23. Kd2 {[%emt 0:01:14]} b6 {[%emt 0:04:36]} 24. Bd4 {[%emt 0:02:01]} Nb2 {[%emt 0:01:27]} 25. Kc2 {[%emt 0:04:19]} Nxc4 {[%emt 0:00:08]} 26. Re1 {[%emt 0:00:06]} Nd6 {[%emt 0:03:39]} 27. a4 {[%emt 0:02:00]} Kf7 {[%emt 0:08:14]} 28. Kb3 {[%emt 0:06:18]} f5 {[%emt 0:08:10]} 29. a5 {[%emt 0:06:44]} Nb5 {[%emt 0:12:26]} 30. axb6 {[%emt 0:00:07]} axb6 {[%emt 0:00:19]} 31. Ra1 {[%emt 0:01:47]} g6 {[%emt 0:01:20]} 32. Bxb6 {[%emt 0:06:01]} Nxc3 {[%emt 0:00:31]} 33. Ra7+ {[%emt 0:00:05]} Kg8 {[%emt 0:05:11]} 34. Bd4 {[%emt 0:01:27]} Nb5 {[%emt 0:00:37]} 35. Rg7+ {[%emt 0:02:49]} Kf8 {[%emt 0:00:07]} 36. Bb2 {[%emt 0:02:49]} Rc7 {[%emt 0:00:13]} 37. Rxc7 {[%emt 0:00:21]} Nxc7 {[%emt 0:00:06]} 38. Kc4 {[%emt 0:00:08]} Kf7 {[%emt 0:00:30]} 39. Be5 {[%emt 0:00:10]} Ne8 {[%emt 0:00:42]} 40. Kd5 {[%emt 0:00:00]} Nf6+ {[%emt 0:00:00]} 41. Kd6 {[%emt 0:02:22]} Ng4 {[%emt 0:00:46]} 42. Bd4 {[%emt 0:00:04]} g5 {[%emt 0:03:58]} 43. hxg5 {[%emt 0:02:44]} Kg6 {[%emt 0:03:10]} 44. Bb6 {[%emt 0:01:58]} Kxg5 {[%emt 0:00:51]} 45. Bd8+ {[%emt 0:01:42]} Kg6 {[%emt 0:01:23]} 46. Bb6 {[%emt 0:01:16]} f4 {[%emt 0:02:31]} 47. Kd5 {[%emt 0:02:15]} Kf5 {[%emt 0:00:30]} 48. Bc5 {[%emt 0:00:16]} h5 {[%emt 0:01:27]} 49. Bb6 {[%emt 0:00:25]} Nxf2 {[%emt 0:07:19]} 50. Bxf2 {[%emt 0:00:10]} e3 {[%emt 0:00:11]} 51. Bg1 {[%emt 0:00:01]} e2 {[%emt 0:00:14]} 52. Bf2 {[%emt 0:00:04]} fxg3 {[%emt 0:00:13]} 53. Bxg3 {[%emt 0:00:03]} Kg4 {[%emt 0:00:12]} 54. Bf2 {[%emt 0:00:02]} h4 {[%emt 0:00:26]} 55. Ke4 {[%emt 0:00:02]} h3 {[%emt 0:00:12]} 56. Kd4 0-1

[Event "3rd BSSZ-Aranytiz GM 2019"]
[Site "Budapest"]
[Date "2019.08.24"]
[Round "8.2"]
[White "Akshat, Khamparia"]
[Black "Polyik, Peter"]
[Result "1/2-1/2"]
[ECO "D38"]
[WhiteElo "2393"]
[BlackElo "2328"]
[Annotator "NA"]
[PlyCount "31"]
[EventDate "2019.08.16"]
[EventType "tourn"]
[EventCountry "HUN"]
[SourceTitle "playchess.com"]
[Source "ChessBase"]
[SourceQuality "1"]
[TimeControl "40/5400+30:1800+30"]

1. d4 {[%emt 0:03:46]} d5 {[%emt 0:00:06]} 2. c4 {[%emt 0:00:08]} e6 {[%emt 0:00:07]} 3. Nc3 {[%emt 0:00:21]} Bb4 {[%emt 0:00:09]} 4. Nf3 {[%emt 0:01:18]} Nf6 {[%emt 0:00:08]} 5. g3 {[%emt 0:01:28]} dxc4 {[%emt 0:01:16]} 6. Bg2 {[%emt 0:00:09]} Nc6 {[%emt 0:00:19]} 7. O-O {[%emt 0:00:15]} O-O {[%emt 0:00:08]} 8. a3 {[%emt 0:00:04]} Be7 {[%emt 0:07:22]} 9. e4 {[%emt 0:00:06]} a6 {[%emt 0:00:51]} 10. Be3 {[%emt 0:00:40]} Na5 {[%emt 0:03:42]} 11. Qe2 {[%emt 0:00:07]} c6 {[%emt 0:08:00]} 12. Ne5 {[%emt 0:00:47]} b5 {[%emt 0:00:56]} 13. Rad1 {[%emt 0:00:45]} Bb7 {[%emt 0:00:13]} 14. f4 {[%emt 0:00:06]} Nb3 {[%emt 0:18:14]} 15. f5 {[%emt 0:10:46]} exf5 {[%emt 0:14:27]} 16. Rxf5 {[%emt 0:01:43]} 1/2-1/2

[Event "3rd BSSZ-Aranytiz GM 2019"]
[Site "Budapest"]
[Date "2019.08.24"]
[Round "8.3"]
[White "Csonka, Balazs"]
[Black "Secheres, Adrian-Simion"]
[Result "1-0"]
[ECO "B41"]
[WhiteElo "2472"]
[BlackElo "2394"]
[Annotator "ChessBase"]
[PlyCount "95"]
[EventDate "2019.08.16"]
[EventType "tourn"]
[EventCountry "HUN"]
[SourceTitle "playchess.com"]
[Source "ChessBase"]
[SourceQuality "1"]
[TimeControl "40/5400+30:1800+30"]

1. e4 {[%emt 0:00:04]} c5 {[%emt 0:02:38]} 2. Nf3 {[%emt 0:00:09]} e6 {[%emt 0:00:15]} 3. d4 {[%emt 0:00:24]} cxd4 {[%emt 0:00:08]} 4. Nxd4 {[%emt 0:00:05]} a6 {[%emt 0:00:06]} 5. c4 {[%emt 0:00:06]} Nf6 {[%emt 0:00:09]} 6. Nc3 {[%emt 0:00:10]} Qc7 {[%emt 0:00:15]} 7. Be2 {[%emt 0:00:29]} b6 {[%emt 0:00:10]} 8. O-O {[%emt 0:02:43]} Bb7 {[%emt 0:00:21]} 9. Qd3 {[%emt 0:00:29]} Nc6 {[%emt 0:03:15]} 10. Nxc6 {[%emt 0:03:13]} dxc6 {[%emt 0:09:37]} 11. f4 {[%emt 0:07:51]} Bb4 {[%emt 0:17:37]} 12. e5 {[%emt 0:07:42]} Bxc3 {[%emt 0:00:31]} 13. Qxc3 {[%emt 0:04:14]} Nd7 {[%emt 0:00:59]} 14. Be3 {[%emt 0:05:03]} c5 {[%emt 0:06:08]} 15. Rad1 {[%emt 0:05:17]} O-O {[%emt 0:02:53]} 16. Rd6 {[%emt 0:10:47]} Rfc8 {[%emt 0:05:19]} 17. Rfd1 {[%emt 0:06:50]} Nf8 {[%emt 0:01:01]} 18. b4 {[%emt 0:06:22]} Be4 {[%emt 0:03:30]} 19. Bf1 {[%emt 0:06:31]} h6 {[%emt 0:15:25]} 20. a3 {[%emt 0:04:24]} Qb7 {[%emt 0:02:13]} 21. Qb2 {[%emt 0:02:57]} Ng6 {[%emt 0:03:50]} 22. bxc5 {[%emt 0:09:03]} bxc5 {[%emt 0:00:10]} 23. Qxb7 {[%emt 0:00:04]} Bxb7 {[%emt 0:00:08]} 24. Rb6 {[%emt 0:04:19]} Be4 {[%emt 0:05:29]} 25. Rd7 {[%emt 0:02:24]} h5 {[%emt 0:06:27]} 26. g3 {[%emt 0:01:48]} h4 {[%emt 0:00:33]} 27. Kf2 {[%emt 0:03:53]} a5 {[%emt 0:02:47]} 28. Bg2 {[%emt 0:01:56]} Bxg2 {[%emt 0:00:09]} 29. Kxg2 {[%emt 0:00:02]} Rab8 {[%emt 0:03:00]} 30. Bxc5 {[%emt 0:01:28]} Rxb6 {[%emt 0:00:44]} 31. Bxb6 {[%emt 0:00:02]} Rxc4 {[%emt 0:00:12]} 32. Bxa5 {[%emt 0:00:20]} Rc2+ {[%emt 0:03:33]} 33. Rd2 {[%emt 0:00:08]} Rc4 {[%emt 0:00:12]} 34. Rd8+ {[%emt 0:03:14]} Kh7 {[%emt 0:00:08]} 35. Rd7 {[%emt 0:01:01]} Rc2+ {[%emt 0:01:09]} 36. Kh3 {[%emt 0:00:46]} Kg8 {[%emt 0:00:20]} 37. Rd8+ {[%emt 0:00:25]} Kh7 {[%emt 0:00:08]} 38. Bb4 {[%emt 0:00:42]} Rc4 {[%emt 0:01:18]} 39. Rb8 {[%emt 0:01:09]} f6 {[%emt 0:02:07]} 40. exf6 {[%emt 0:00:00]} gxf6 {[%emt 0:00:00]} 41. a4 {[%emt 0:10:22]} e5 {[%emt 0:07:02]} 42. f5 {[%emt 0:07:57]} Nh8 {[%emt 0:00:02]} 43. Rb7+ {[%emt 0:02:27]} Kg8 {[%emt 0:00:09]} 44. a5 {[%emt 0:00:42]} Nf7 {[%emt 0:01:40]} 45. a6 {[%emt 0:00:29]} Ng5+ {[%emt 0:01:11]} 46. Kg2 {[%emt 0:00:07]} h3+ {[%emt 0:03:36]} 47. Kf1 {[%emt 0:00:12]} Rc1+ {[%emt 0:00:20]} 48. Be1 {[%emt 0:00:33]} 1-0